[Event "Titled Tuesday Blitz June 13 Early 2023"]
[White "Jaskolka, Tomasz"]
[Black "Starozhilov, Leonid"]
[WhiteFideId "1170791"]
[BlackFideId "14106752"]
[WhiteElo "2155"]
[BlackElo "2352"]
[Result "0-1"]
[Round "8"]
[TimeControl "180+2"]
[Date "2023.06.13"]
[WhiteClock "0:00:16"]
[BlackClock "0:00:11"]
[Board "48"]

1. d4 {[%clk 0:02:59]}  Nf6 {[%clk 0:02:58]} 2. Nc3 {[%clk 0:02:59]}  g6 {[%clk 0:02:55]} 3. Bf4 {[%clk 0:02:54]}  d6 {[%clk 0:02:51]} 4. e4 {[%clk 0:02:53]}  Nc6 {[%clk 0:02:50]} 5. Nf3 {[%clk 0:02:52]}  Bg4 {[%clk 0:02:47]} 6. Be2 {[%clk 0:02:43]}  Bg7 {[%clk 0:02:40]} 7. Qd2 {[%clk 0:02:41]}  O-O {[%clk 0:02:33]} 8. O-O-O {[%clk 0:02:35]}  Bxf3 {[%clk 0:02:32]} 9. Bxf3 {[%clk 0:02:33]}  e5 {[%clk 0:02:33]} 10. dxe5 {[%clk 0:02:32]}  dxe5 {[%clk 0:02:33]} 11. Bg5 {[%clk 0:02:23]}  Nd4 {[%clk 0:02:30]} 12. Qe3 {[%clk 0:02:12]}  Qd7 {[%clk 0:01:50]} 13. Bh6 {[%clk 0:01:57]}  Ng4 {[%clk 0:01:28]} 14. Bxg4 {[%clk 0:01:57]}  Qxg4 {[%clk 0:01:29]} 15. Rhg1 {[%clk 0:01:09]}  Rad8 {[%clk 0:01:06]} 16. f3 {[%clk 0:01:05]}  Qe6 {[%clk 0:00:57]} 17. h4 {[%clk 0:00:51]}  c6 {[%clk 0:00:49]} 18. h5 {[%clk 0:00:47]}  b5 {[%clk 0:00:48]} 19. hxg6 {[%clk 0:00:46]}  fxg6 {[%clk 0:00:36]} 20. Bxg7 {[%clk 0:00:45]}  Kxg7 {[%clk 0:00:36]} 21. Rh1 {[%clk 0:00:45]}  Rd7 {[%clk 0:00:34]} 22. Kb1 {[%clk 0:00:32]}  Rfd8 {[%clk 0:00:32]} 23. Ne2 {[%clk 0:00:26]}  Nxe2 {[%clk 0:00:19]} 24. Qxe2 {[%clk 0:00:20]}  Rxd1+ {[%clk 0:00:12]} 25. Rxd1 {[%clk 0:00:21]}  Rxd1+ {[%clk 0:00:12]} 26. Qxd1 {[%clk 0:00:22]}  Qe7 {[%clk 0:00:10]} 27. b3 {[%clk 0:00:21]}  h5 {[%clk 0:00:10]} 28. Qd3 {[%clk 0:00:17]}  Kh6 {[%clk 0:00:05]} 29. Qe3+ {[%clk 0:00:17]}  Kg7 {[%clk 0:00:05]} 30. g3 {[%clk 0:00:16]}  g5 {[%clk 0:00:05]} 31. Kb2 {[%clk 0:00:13]}  h4 {[%clk 0:00:04]} 32. gxh4 {[%clk 0:00:14]}  gxh4 {[%clk 0:00:05]} 33. Qg1+ {[%clk 0:00:11]}  Kh6 {[%clk 0:00:05]} 34. Qg4 {[%clk 0:00:11]}  Qf6 {[%clk 0:00:04]} 35. Kc3 {[%clk 0:00:06]}  a5 {[%clk 0:00:04]} 36. Kd3 {[%clk 0:00:06]}  Qd6+ {[%clk 0:00:04]} 37. Ke2 {[%clk 0:00:06]}  Qf6 {[%clk 0:00:04]} 38. Ke3 {[%clk 0:00:04]}  Qg5+ {[%clk 0:00:04]} 39. Qxg5+ {[%clk 0:00:02]}  Kxg5 {[%clk 0:00:04]} 40. Kf2 {[%clk 0:00:03]}  Kf4 {[%clk 0:00:04]} 41. Kg2 {[%clk 0:00:03]}  Ke3 {[%clk 0:00:04]} 42. c3 {[%clk 0:00:03]}  c5 {[%clk 0:00:03]} 43. a3 {[%clk 0:00:04]}  b4 {[%clk 0:00:03]} 44. cxb4 {[%clk 0:00:04]}  cxb4 {[%clk 0:00:04]} 45. axb4 {[%clk 0:00:04]}  axb4 {[%clk 0:00:05]} 46. Kh3 {[%clk 0:00:05]}  Kxf3 {[%clk 0:00:05]} 47. Kxh4 {[%clk 0:00:06]}  Kxe4 {[%clk 0:00:06]} 48. Kg3 {[%clk 0:00:07]}  Kd3 {[%clk 0:00:06]} 49. Kf2 {[%clk 0:00:07]}  e4 {[%clk 0:00:06]} 50. Ke1 {[%clk 0:00:07]}  Ke3 {[%clk 0:00:07]} 51. Kd1 {[%clk 0:00:08]}  Kf2 {[%clk 0:00:07]} 52. Kd2 {[%clk 0:00:09]}  e3+ {[%clk 0:00:08]} 53. Kd3 {[%clk 0:00:09]}  e2 {[%clk 0:00:08]} 54. Kc4 {[%clk 0:00:10]}  e1=Q {[%clk 0:00:09]} 55. Kb5 {[%clk 0:00:11]}  Qc3 {[%clk 0:00:09]} 56. Ka4 {[%clk 0:00:12]}  Ke3 {[%clk 0:00:10]} 57. Kb5 {[%clk 0:00:12]}  Qxb3 {[%clk 0:00:10]} 58. Ka5 {[%clk 0:00:13]}  Qc3 {[%clk 0:00:11]} 59. Kb5 {[%clk 0:00:13]}  b3 {[%clk 0:00:11]} 60. Ka4 {[%clk 0:00:14]}  b2 {[%clk 0:00:11]} 61. Kb5 {[%clk 0:00:15]}  b1=Q+ {[%clk 0:00:10]} 62. Ka4 {[%clk 0:00:16]}  Qca1# {[%clk 0:00:11]} 0-1


[Site "https://www.chess.com"]

[Event "Titled Tuesday Blitz June 13 Early 2023"]
[White "Rastbod, Ali"]
[Black "Yelisieiev, Yevhenii"]
[WhiteFideId "12567477"]
[BlackFideId "14139642"]
[WhiteElo "2281"]
[BlackElo "2403"]
[Result "0-1"]
[Round "8"]
[TimeControl "180+2"]
[Date "2023.06.13"]
[WhiteClock "0:01:17"]
[BlackClock "0:00:22"]
[Board "50"]

1. e4 {[%clk 0:02:47]}  d6 {[%clk 0:02:57]} 2. d4 {[%clk 0:02:47]}  Nf6 {[%clk 0:02:57]} 3. Nc3 {[%clk 0:02:47]}  e5 {[%clk 0:02:58]} 4. Nf3 {[%clk 0:02:47]}  Nbd7 {[%clk 0:02:58]} 5. Rg1 {[%clk 0:02:45]}  c6 {[%clk 0:02:52]} 6. g4 {[%clk 0:02:45]}  g6 {[%clk 0:02:53]} 7. h4 {[%clk 0:02:44]}  h5 {[%clk 0:02:39]} 8. g5 {[%clk 0:02:44]}  Ng4 {[%clk 0:02:40]} 9. Bh3 {[%clk 0:02:44]}  Bg7 {[%clk 0:02:34]} 10. dxe5 {[%clk 0:02:44]}  Ndxe5 {[%clk 0:02:28]} 11. Nxe5 {[%clk 0:02:44]}  Nxe5 {[%clk 0:02:21]} 12. Bxc8 {[%clk 0:02:43]}  Rxc8 {[%clk 0:02:15]} 13. Be3 {[%clk 0:02:36]}  O-O {[%clk 0:02:06]} 14. Qe2 {[%clk 0:02:27]}  Qa5 {[%clk 0:01:59]} 15. O-O-O {[%clk 0:02:20]}  b5 {[%clk 0:01:49]} 16. Bd4 {[%clk 0:02:01]}  b4 {[%clk 0:01:35]} 17. Nb1 {[%clk 0:01:58]}  Qxa2 {[%clk 0:01:34]} 18. Rg3 {[%clk 0:01:40]}  c5 {[%clk 0:01:30]} 19. Bxe5 {[%clk 0:01:30]}  Bxe5 {[%clk 0:01:30]} 20. Rb3 {[%clk 0:01:30]}  a5 {[%clk 0:01:08]} 21. Qc4 {[%clk 0:01:28]}  a4 {[%clk 0:00:35]} 22. Rxb4 {[%clk 0:01:25]}  Bf4+ {[%clk 0:00:33]} 23. Rd2 {[%clk 0:01:22]}  Bxd2+ {[%clk 0:00:28]} 24. Kxd2 {[%clk 0:01:22]}  Qxb1 {[%clk 0:00:27]} 25. Rxa4 {[%clk 0:01:17]}  Qxb2 {[%clk 0:00:22]} 0-1


[Site "https://www.chess.com"]

[Event "Titled Tuesday Blitz June 13 Early 2023"]
[White "feuervogel1000000"]
[Black "Srihari L R"]
[BlackFideId "46617116"]
[WhiteElo "2523"]
[BlackElo "2334"]
[Result "1/2-1/2"]
[Round "8"]
[TimeControl "180+2"]
[Date "2023.06.13"]
[WhiteClock "0:00:44"]
[BlackClock "0:00:07"]
[Board "52"]

1. d4 {[%clk 0:03:00]}  Nf6 {[%clk 0:02:58]} 2. c4 {[%clk 0:03:00]}  e6 {[%clk 0:02:58]} 3. Nc3 {[%clk 0:02:59]}  Bb4 {[%clk 0:02:56]} 4. e3 {[%clk 0:02:59]}  O-O {[%clk 0:02:52]} 5. Bd3 {[%clk 0:02:59]}  d5 {[%clk 0:02:52]} 6. a3 {[%clk 0:02:58]}  Bxc3+ {[%clk 0:02:52]} 7. bxc3 {[%clk 0:02:59]}  dxc4 {[%clk 0:02:52]} 8. Bxc4 {[%clk 0:02:59]}  c5 {[%clk 0:02:53]} 9. Ne2 {[%clk 0:02:57]}  Qc7 {[%clk 0:02:50]} 10. Bd3 {[%clk 0:02:57]}  e5 {[%clk 0:02:30]} 11. dxe5 {[%clk 0:02:37]}  Qxe5 {[%clk 0:02:29]} 12. O-O {[%clk 0:02:38]}  Nc6 {[%clk 0:02:24]} 13. f3 {[%clk 0:02:34]}  Rd8 {[%clk 0:02:23]} 14. Qc2 {[%clk 0:02:32]}  Be6 {[%clk 0:02:23]} 15. Ng3 {[%clk 0:02:29]}  c4 {[%clk 0:02:12]} 16. Be2 {[%clk 0:02:27]}  h5 {[%clk 0:02:11]} 17. f4 {[%clk 0:02:22]}  Qc5 {[%clk 0:02:09]} 18. Bf3 {[%clk 0:02:20]}  Rd3 {[%clk 0:02:05]} 19. Kh1 {[%clk 0:02:17]}  Qa5 {[%clk 0:01:29]} 20. e4 {[%clk 0:01:46]}  Rxc3 {[%clk 0:01:26]} 21. Qf2 {[%clk 0:01:44]}  Bg4 {[%clk 0:01:10]} 22. Bd2 {[%clk 0:01:39]}  h4 {[%clk 0:01:08]} 23. Ne2 {[%clk 0:01:37]}  Rxf3 {[%clk 0:01:03]} 24. gxf3 {[%clk 0:01:33]}  Qxd2 {[%clk 0:01:02]} 25. fxg4 {[%clk 0:01:33]}  Nxe4 {[%clk 0:01:01]} 26. Qg2 {[%clk 0:01:33]}  Re8 {[%clk 0:00:52]} 27. Ng1 {[%clk 0:01:31]}  Qxg2+ {[%clk 0:00:49]} 28. Kxg2 {[%clk 0:01:32]}  c3 {[%clk 0:00:45]} 29. Rfe1 {[%clk 0:01:30]}  Nd4 {[%clk 0:00:43]} 30. Ne2 {[%clk 0:01:26]}  Nc2 {[%clk 0:00:42]} 31. Nxc3 {[%clk 0:01:26]}  Nxa1 {[%clk 0:00:40]} 32. Nxe4 {[%clk 0:01:21]}  Kf8 {[%clk 0:00:38]} 33. Kf3 {[%clk 0:01:10]}  Nc2 {[%clk 0:00:26]} 34. Rc1 {[%clk 0:01:08]}  Nd4+ {[%clk 0:00:24]} 35. Ke3 {[%clk 0:01:09]}  f5 {[%clk 0:00:24]} 36. gxf5 {[%clk 0:01:09]}  Nxf5+ {[%clk 0:00:24]} 37. Kf3 {[%clk 0:01:10]}  Nd4+ {[%clk 0:00:21]} 38. Ke3 {[%clk 0:01:09]}  Nb5 {[%clk 0:00:21]} 39. Kf3 {[%clk 0:01:07]}  Nxa3 {[%clk 0:00:19]} 40. Rc7 {[%clk 0:00:58]}  Re7 {[%clk 0:00:18]} 41. Rc8+ {[%clk 0:00:58]}  Kf7 {[%clk 0:00:18]} 42. Ng5+ {[%clk 0:00:49]}  Kg6 {[%clk 0:00:13]} 43. Kg4 {[%clk 0:00:49]}  Nb5 {[%clk 0:00:09]} 44. Rf8 {[%clk 0:00:46]}  Nd6 {[%clk 0:00:04]} 45. f5+ {[%clk 0:00:46]}  Nxf5 {[%clk 0:00:04]} 46. Rxf5 {[%clk 0:00:47]}  Rc7 {[%clk 0:00:04]} 47. Ne6 {[%clk 0:00:46]}  Rc4+ {[%clk 0:00:04]} 48. Nf4+ {[%clk 0:00:47]}  Kh7 {[%clk 0:00:04]} 49. Kxh4 {[%clk 0:00:44]}  b6 {[%clk 0:00:03]} 50. Kg5 {[%clk 0:00:44]}  a5 {[%clk 0:00:03]} 51. Rb5 {[%clk 0:00:44]}  Rc5+ {[%clk 0:00:02]} 52. Rxc5 {[%clk 0:00:44]}  bxc5 {[%clk 0:00:03]} 53. Nd5 {[%clk 0:00:44]}  a4 {[%clk 0:00:04]} 54. Nc3 {[%clk 0:00:44]}  a3 {[%clk 0:00:04]} 55. h4 {[%clk 0:00:45]}  g6 {[%clk 0:00:03]} 56. Na2 {[%clk 0:00:43]}  Kg7 {[%clk 0:00:02]} 57. Kg4 {[%clk 0:00:44]}  Kh6 {[%clk 0:00:02]} 58. Nc3 {[%clk 0:00:45]}  c4 {[%clk 0:00:02]} 59. Na2 {[%clk 0:00:43]}  Kh7 {[%clk 0:00:03]} 60. Kg5 {[%clk 0:00:43]}  Kg7 {[%clk 0:00:04]} 61. Nb4 {[%clk 0:00:43]}  Kh7 {[%clk 0:00:04]} 62. Kf4 {[%clk 0:00:43]}  Kh6 {[%clk 0:00:02]} 63. Kg4 {[%clk 0:00:43]}  c3 {[%clk 0:00:02]} 64. Nc2 {[%clk 0:00:40]}  a2 {[%clk 0:00:02]} 65. Kg3 {[%clk 0:00:40]}  Kh5 {[%clk 0:00:02]} 66. Kh3 {[%clk 0:00:41]}  g5 {[%clk 0:00:03]} 67. hxg5 {[%clk 0:00:42]}  Kxg5 {[%clk 0:00:04]} 68. Kg3 {[%clk 0:00:43]}  Kf5 {[%clk 0:00:04]} 69. Kf3 {[%clk 0:00:43]}  Ke5 {[%clk 0:00:05]} 70. Ke3 {[%clk 0:00:43]}  Kd5 {[%clk 0:00:06]} 71. Kd3 {[%clk 0:00:44]}  a1=Q {[%clk 0:00:06]} 72. Nxa1 {[%clk 0:00:44]}  c2 {[%clk 0:00:07]} 73. Nxc2 {[%clk 0:00:44]} 1/2-1/2


[Site "https://www.chess.com"]

[Event "Titled Tuesday Blitz June 13 Early 2023"]
[White "Bodnaruk, Anastasia"]
[Black "Shimanov, Aleksandr"]
[WhiteFideId "4181751"]
[BlackFideId "4198603"]
[WhiteElo "2304"]
[BlackElo "2631"]
[Result "1-0"]
[Round "8"]
[TimeControl "180+2"]
[Date "2023.06.13"]
[WhiteClock "0:00:11"]
[BlackClock "0:00:00"]
[Board "57"]

1. e4 {[%clk 0:03:00]}  d5 {[%clk 0:02:49]} 2. exd5 {[%clk 0:03:00]}  Qxd5 {[%clk 0:02:50]} 3. Nc3 {[%clk 0:03:00]}  Qe5+ {[%clk 0:02:50]} 4. Be2 {[%clk 0:02:57]}  Bg4 {[%clk 0:02:50]} 5. d4 {[%clk 0:02:54]}  Bxe2 {[%clk 0:02:50]} 6. Ngxe2 {[%clk 0:02:53]}  Qa5 {[%clk 0:02:51]} 7. O-O {[%clk 0:02:53]}  Nf6 {[%clk 0:02:50]} 8. Nf4 {[%clk 0:02:44]}  c6 {[%clk 0:02:46]} 9. Re1 {[%clk 0:02:44]}  Nbd7 {[%clk 0:02:37]} 10. d5 {[%clk 0:02:39]}  cxd5 {[%clk 0:02:25]} 11. Ncxd5 {[%clk 0:02:32]}  Nxd5 {[%clk 0:02:09]} 12. Nxd5 {[%clk 0:02:30]}  e6 {[%clk 0:02:07]} 13. Bf4 {[%clk 0:02:09]}  Rc8 {[%clk 0:02:05]} 14. Rxe6+ {[%clk 0:01:44]}  Kd8 {[%clk 0:01:42]} 15. Bg5+ {[%clk 0:01:25]}  f6 {[%clk 0:01:39]} 16. Nxf6 {[%clk 0:01:03]}  gxf6 {[%clk 0:01:37]} 17. Bxf6+ {[%clk 0:01:03]}  Kc7 {[%clk 0:01:38]} 18. Bxh8 {[%clk 0:01:01]}  Qf5 {[%clk 0:01:27]} 19. Qe2 {[%clk 0:00:47]}  Bc5 {[%clk 0:01:25]} 20. Bc3 {[%clk 0:00:46]}  Bxf2+ {[%clk 0:01:19]} 21. Kh1 {[%clk 0:00:46]}  Bc5 {[%clk 0:01:00]} 22. Rf1 {[%clk 0:00:45]}  Qd5 {[%clk 0:00:58]} 23. Rd1 {[%clk 0:00:40]}  Qf5 {[%clk 0:00:57]} 24. Be5+ {[%clk 0:00:31]}  Kd8 {[%clk 0:00:54]} 25. Bg3 {[%clk 0:00:27]}  Qf7 {[%clk 0:00:50]} 26. Re5 {[%clk 0:00:23]}  Rc6 {[%clk 0:00:24]} 27. Red5 {[%clk 0:00:23]}  Kc8 {[%clk 0:00:08]} 28. Rxd7 {[%clk 0:00:23]}  Qxd7 {[%clk 0:00:09]} 29. Rxd7 {[%clk 0:00:22]}  Kxd7 {[%clk 0:00:10]} 30. Qg4+ {[%clk 0:00:22]}  Re6 {[%clk 0:00:09]} 31. h4 {[%clk 0:00:19]}  Be7 {[%clk 0:00:08]} 32. c4 {[%clk 0:00:17]}  b6 {[%clk 0:00:08]} 33. Qf5 {[%clk 0:00:18]}  h6 {[%clk 0:00:08]} 34. Be5 {[%clk 0:00:16]}  Bxh4 {[%clk 0:00:07]} 35. b4 {[%clk 0:00:15]}  Be7 {[%clk 0:00:07]} 36. Bf4 {[%clk 0:00:14]}  a6 {[%clk 0:00:02]} 37. c5 {[%clk 0:00:14]}  bxc5 {[%clk 0:00:03]} 38. bxc5 {[%clk 0:00:15]}  Bd8 {[%clk 0:00:02]} 39. c6+ {[%clk 0:00:12]}  Ke7 {[%clk 0:00:03]} 40. Qc5+ {[%clk 0:00:12]}  Kf6 {[%clk 0:00:02]} 41. c7 {[%clk 0:00:12]}  Be7 {[%clk 0:00:01]} 42. Qc3+ {[%clk 0:00:11]}  Kf5 {[%clk 0:00:00]} 43. c8=Q {[%clk 0:00:11]} 1-0


[Site "https://www.chess.com"]

[Event "Titled Tuesday Blitz June 13 Early 2023"]
[White "Kosakowski, Jakub"]
[Black "Chos, Alexey"]
[WhiteFideId "1185080"]
[BlackFideId "14117762"]
[WhiteElo "2488"]
[BlackElo "2234"]
[Result "1/2-1/2"]
[Round "8"]
[TimeControl "180+2"]
[Date "2023.06.13"]
[WhiteClock "0:00:09"]
[BlackClock "0:00:00"]
[Board "59"]

1. d4 {[%clk 0:02:56]}  Nf6 {[%clk 0:03:00]} 2. Nf3 {[%clk 0:02:53]}  g6 {[%clk 0:02:59]} 3. Nbd2 {[%clk 0:02:53]}  d5 {[%clk 0:02:58]} 4. b4 {[%clk 0:02:53]}  Bg7 {[%clk 0:02:58]} 5. e3 {[%clk 0:02:53]}  O-O {[%clk 0:02:59]} 6. c4 {[%clk 0:02:51]}  Ne4 {[%clk 0:02:58]} 7. Bb2 {[%clk 0:02:48]}  a5 {[%clk 0:02:57]} 8. b5 {[%clk 0:02:45]}  c5 {[%clk 0:02:57]} 9. a4 {[%clk 0:02:44]}  Bg4 {[%clk 0:02:55]} 10. Be2 {[%clk 0:02:39]}  e6 {[%clk 0:02:44]} 11. h3 {[%clk 0:02:34]}  Bf5 {[%clk 0:02:38]} 12. O-O {[%clk 0:02:00]}  g5 {[%clk 0:02:31]} 13. Qc1 {[%clk 0:01:54]}  cxd4 {[%clk 0:02:17]} 14. Nxd4 {[%clk 0:01:50]}  Bg6 {[%clk 0:02:15]} 15. cxd5 {[%clk 0:01:49]}  exd5 {[%clk 0:02:14]} 16. Nxe4 {[%clk 0:01:49]}  Bxe4 {[%clk 0:02:11]} 17. Nb3 {[%clk 0:01:45]}  Nd7 {[%clk 0:02:09]} 18. Bxg7 {[%clk 0:01:41]}  Kxg7 {[%clk 0:02:09]} 19. Rd1 {[%clk 0:01:40]}  Qf6 {[%clk 0:02:07]} 20. Qd2 {[%clk 0:01:31]}  Rfc8 {[%clk 0:02:04]} 21. Rac1 {[%clk 0:01:28]}  Nb6 {[%clk 0:02:02]} 22. Nxa5 {[%clk 0:01:10]}  Nxa4 {[%clk 0:01:57]} 23. Nxb7 {[%clk 0:01:05]}  Nc3 {[%clk 0:01:53]} 24. Bg4 {[%clk 0:00:53]}  Rc7 {[%clk 0:01:38]} 25. b6 {[%clk 0:00:46]}  Rc4 {[%clk 0:01:27]} 26. Nd6 {[%clk 0:00:41]}  Ra2 {[%clk 0:01:17]} 27. Nxe4 {[%clk 0:00:18]}  Rxd2 {[%clk 0:00:48]} 28. Nxf6 {[%clk 0:00:14]}  Rxd1+ {[%clk 0:00:47]} 29. Rxd1 {[%clk 0:00:10]}  Nxd1 {[%clk 0:00:44]} 30. Nxd5 {[%clk 0:00:04]}  Rc1 {[%clk 0:00:41]} 31. Kh2 {[%clk 0:00:03]}  Nxf2 {[%clk 0:00:40]} 32. Bf5 {[%clk 0:00:02]}  Rc5 {[%clk 0:00:30]} 33. Nc7 {[%clk 0:00:03]}  Rc3 {[%clk 0:00:16]} 34. b7 {[%clk 0:00:01]}  Rb3 {[%clk 0:00:16]} 35. Bc8 {[%clk 0:00:02]}  Ne4 {[%clk 0:00:14]} 36. Na6 {[%clk 0:00:02]}  Nd6 {[%clk 0:00:11]} 37. b8=Q {[%clk 0:00:03]}  Rxb8 {[%clk 0:00:10]} 38. Nxb8 {[%clk 0:00:04]}  Nxc8 {[%clk 0:00:11]} 39. Nc6 {[%clk 0:00:04]}  Kf6 {[%clk 0:00:09]} 40. Nd4 {[%clk 0:00:05]}  h6 {[%clk 0:00:07]} 41. g4 {[%clk 0:00:05]}  Ke5 {[%clk 0:00:06]} 42. Nf5 {[%clk 0:00:05]}  h5 {[%clk 0:00:03]} 43. Nh6 {[%clk 0:00:06]}  hxg4 {[%clk 0:00:02]} 44. hxg4 {[%clk 0:00:07]}  Nd6 {[%clk 0:00:01]} 45. Kg3 {[%clk 0:00:08]}  Ke4 {[%clk 0:00:01]} 46. Ng8 {[%clk 0:00:08]}  f6 {[%clk 0:00:01]} 47. Nxf6+ {[%clk 0:00:09]}  Kxe3 {[%clk 0:00:01]} 48. Nh7 {[%clk 0:00:09]}  Ne4+ {[%clk 0:00:01]} 49. Kg2 {[%clk 0:00:10]}  Kf4 {[%clk 0:00:02]} 50. Kh3 {[%clk 0:00:10]}  Kf3 {[%clk 0:00:02]} 51. Nf8 {[%clk 0:00:06]}  Kf4 {[%clk 0:00:02]} 52. Ne6+ {[%clk 0:00:06]}  Ke5 {[%clk 0:00:02]} 53. Ng7 {[%clk 0:00:07]}  Kf4 {[%clk 0:00:02]} 54. Nh5+ {[%clk 0:00:07]}  Kf3 {[%clk 0:00:01]} 55. Ng7 {[%clk 0:00:07]}  Nf2+ {[%clk 0:00:02]} 56. Kh2 {[%clk 0:00:07]}  Nxg4+ {[%clk 0:00:03]} 57. Kg1 {[%clk 0:00:07]}  Nf2 {[%clk 0:00:04]} 58. Ne6 {[%clk 0:00:07]}  g4 {[%clk 0:00:05]} 59. Ng5+ {[%clk 0:00:07]}  Ke3 {[%clk 0:00:06]} 60. Ne6 {[%clk 0:00:08]}  Kf3 {[%clk 0:00:04]} 61. Nd4+ {[%clk 0:00:08]}  Ke3 {[%clk 0:00:04]} 62. Nf5+ {[%clk 0:00:08]}  Kf3 {[%clk 0:00:03]} 63. Nd4+ {[%clk 0:00:09]}  Kg3 {[%clk 0:00:00]} 64. Ne2+ {[%clk 0:00:09]} 1/2-1/2


[Site "https://www.chess.com"]

[Event "Titled Tuesday Blitz June 13 Early 2023"]
[White "Parpiev, Isaak"]
[Black "Postny, Evgeny"]
[WhiteFideId "34281576"]
[BlackFideId "2804344"]
[WhiteElo "2167"]
[BlackElo "2504"]
[Result "1-0"]
[Round "8"]
[TimeControl "180+2"]
[Date "2023.06.13"]
[WhiteClock "0:00:04"]
[BlackClock "0:00:35"]
[Board "65"]

1. d4 {[%clk 0:02:44]}  Nf6 {[%clk 0:02:55]} 2. c4 {[%clk 0:02:44]}  e5 {[%clk 0:02:55]} 3. dxe5 {[%clk 0:02:34]}  Ne4 {[%clk 0:02:55]} 4. a3 {[%clk 0:02:28]}  Nc6 {[%clk 0:02:54]} 5. Nf3 {[%clk 0:02:28]}  a5 {[%clk 0:02:53]} 6. Bf4 {[%clk 0:02:23]}  d6 {[%clk 0:02:51]} 7. e3 {[%clk 0:02:19]}  Bf5 {[%clk 0:02:41]} 8. exd6 {[%clk 0:01:58]}  Bxd6 {[%clk 0:02:40]} 9. Bxd6 {[%clk 0:01:58]}  Nxd6 {[%clk 0:02:38]} 10. Nc3 {[%clk 0:01:56]}  O-O {[%clk 0:02:31]} 11. Be2 {[%clk 0:01:56]}  Qf6 {[%clk 0:02:31]} 12. O-O {[%clk 0:01:55]}  Rad8 {[%clk 0:02:30]} 13. Qc1 {[%clk 0:01:47]}  Ne7 {[%clk 0:02:14]} 14. Nd4 {[%clk 0:01:42]}  Bc8 {[%clk 0:02:11]} 15. c5 {[%clk 0:01:41]}  Ndf5 {[%clk 0:02:08]} 16. Nf3 {[%clk 0:01:28]}  Ng6 {[%clk 0:02:02]} 17. b4 {[%clk 0:01:23]}  Ngh4 {[%clk 0:02:00]} 18. Ne4 {[%clk 0:01:19]}  Qe7 {[%clk 0:01:54]} 19. Ng3 {[%clk 0:01:17]}  Nxf3+ {[%clk 0:01:47]} 20. Bxf3 {[%clk 0:01:17]}  Nh4 {[%clk 0:01:48]} 21. Be4 {[%clk 0:01:11]}  f5 {[%clk 0:01:45]} 22. Bc2 {[%clk 0:01:09]}  Be6 {[%clk 0:01:39]} 23. Qb2 {[%clk 0:00:49]}  Qf7 {[%clk 0:01:32]} 24. Rad1 {[%clk 0:00:47]}  Bc4 {[%clk 0:01:26]} 25. Rfe1 {[%clk 0:00:45]}  Bd5 {[%clk 0:01:26]} 26. Rxd5 {[%clk 0:00:43]}  Rxd5 {[%clk 0:01:24]} 27. Bb3 {[%clk 0:00:43]}  c6 {[%clk 0:01:18]} 28. f3 {[%clk 0:00:22]}  axb4 {[%clk 0:01:17]} 29. axb4 {[%clk 0:00:22]}  Rfd8 {[%clk 0:01:16]} 30. e4 {[%clk 0:00:17]}  fxe4 {[%clk 0:01:16]} 31. fxe4 {[%clk 0:00:17]}  Qe6 {[%clk 0:01:01]} 32. Rf1 {[%clk 0:00:15]}  Kh8 {[%clk 0:00:57]} 33. exd5 {[%clk 0:00:15]}  Qe3+ {[%clk 0:00:58]} 34. Kh1 {[%clk 0:00:14]}  cxd5 {[%clk 0:00:54]} 35. Bxd5 {[%clk 0:00:14]}  Qd3 {[%clk 0:00:50]} 36. Bxb7 {[%clk 0:00:07]}  h6 {[%clk 0:00:45]} 37. Be4 {[%clk 0:00:07]}  Qc4 {[%clk 0:00:42]} 38. Qf2 {[%clk 0:00:07]}  Qxb4 {[%clk 0:00:35]} 39. Qf8+ {[%clk 0:00:04]} 1-0


[Site "https://www.chess.com"]